Cogmind - Beta 9.6 @@@ ROGUE MODE // 2020.06.29 @ 23:02:43 Player: Kenzurith Result: Destroyed by Explosive Trap Performance ------------- Evolutions (0) 0 Regions Visited (4) 800 Robots Destroyed (29) 145 Value Destroyed (830) 830 Prototype IDs (0) 0 Alien Tech Used (0) 0 Bonus (33) 33 TOTAL SCORE: 1808 Bonus ------- Follower Combat Kills 33 Cogmind --------- Core Integrity 0/250 Matter 215/300 Energy 246/250 System Corruption 0% Temperature Cool (2) Movement Walking (180) Ox2 Location -9/Mines Parts ------- > --- POWER (1) -------- Ion Engine > --- PROPULSION (2) --- Aluminum Leg Aluminum Leg > --- UTILITY (2) ------ Large Storage Unit Large Storage Unit > --- WEAPON (2) ------- Assault Rifle Assault Rifle > --- INVENTORY (16) --- Improved Ion Engine Light Treads Light Treads Improved Heat Sink Large Storage Unit High-capacity Matter Pod (200) Improved Terrain Scanner Light Armor Plating Light Armor Plating Light Armor Plating Light Armor Plating Beam Rifle Beam Cannon Battle Cannon Grenade Launcher Rocket Launcher Peak State ------------ > --- POWER ------------ Ion Engine > --- PROPULSION ------- Light Treads Light Treads > --- UTILITY ---------- Large Storage Unit High-capacity Storage Unit > --- WEAPON ----------- Particle Gun Assault Rifle > --- INVENTORY -------- Ion Engine Improved Ion Engine Light Treads Light Treads Wheel Heat Sink Large Storage Unit High-capacity Matter Pod Improved Terrain Scanner Light Armor Plating Light Armor Plating Light Armor Plating Light Armor Plating Beam Rifle Assault Rifle Grenade Launcher Rocket Launcher Mining Laser [Rating: 10] Favorites ----------- Power Ion Engine Engine Ion Engine Propulsion Light Treads Treads Light Treads Leg Aluminum Leg Utility High-capacity Storage Unit Device Heat Sink Storage High-capacity Storage Unit Weapon Assault Rifle Energy Gun Medium Laser Ballistic Gun Assault Rifle Launcher Grenade Launcher Build | -11 -10 -10 -10 -9 ------- Run | Scr Mat Min Exi Min Slots Evolved . | . . . . . Power . | . . . . . Propulsion . | . . . . . Utility . | . . . . . Weapon . | . . . . . Parts Attached 31 | . 16 10 3 2 Power 4 | . . 3 1 . Engine 4 | . . 3 1 . Core . | . . . . . Reactor . | . . . . . Propulsion 9 | . 5 4 . . Treads 4 | . 2 2 . . Leg 5 | . 3 2 . . Wheel . | . . . . . Hover . | . . . . . Flight . | . . . . . Utility 8 | . 5 1 2 . Device 2 | . 2 . . . Storage 6 | . 3 1 2 . Processor . | . . . . . Hackware . | . . . . . Protection . | . . . . . Artifact . | . . . . . Weapon 10 | . 6 2 . 2 Energy Gun 3 | . 2 1 . . Energy Cannon . | . . . . . Ballistic Gun 6 | . 4 1 . 1 Ballistic Cannon . | . . . . . Launcher 1 | . . . . 1 Special Weapon . | . . . . . Impact Weapon . | . . . . . Slashing Weapon . | . . . . . Piercing Weapon . | . . . . . Special Melee Weapon . | . . . . . Unidentified Prototypes . | . . . . . Parts Lost 5 | . 4 1 . . Power . | . . . . . Propulsion 2 | . 2 . . . Utility . | . . . . . Weapon 3 | . 2 1 . . Highest Loss Streak 4 | . 4 1 . . Average Slot Usage (%) 98 | . 96 100 100 100 Engine 14 | . 14 14 14 14 Treads 15 | . 6 26 . . Leg 12 | . 21 1 28 28 Device 5 | . 11 5 . . Storage 21 | . 14 22 28 28 Energy Gun 6 | . 20 . . . Ballistic Gun 21 | . 7 27 28 26 Naked Turns . | . . . . . Heaviest Build 58 | 13 42 58 57 41 Greatest Support 40 | 20 40 40 20 20 Greatest Overweight (x) 5 | . 2 5 2 2 Average Overweight (x) 1 | . . 1 2 2 Largest Inventory Capacity 18 | 6 12 18 18 16 Average Capacity 14 | 6 9 15 17 16 Most Carried 18 | 6 12 18 18 16 Average Carried 13 | 6 8 15 17 16 Final Capacity 18 | 6 12 18 16 16 Final Carried 18 | 6 12 18 16 16 Class Distribution -------------------- 94% | Mutant 5% | Scavenger-Mutant Dominant Class ---------------- Mutant | -10/Materials Mutant | -10/Mines Mutant | -10/Exiles Mutant | -9/Mines Resources | -11 -10 -10 -10 -9 ----------- Run | Scr Mat Min Exi Min Matter Collected 670 | 200 186 279 . 5 Remotely . | . . . . . Salvage Created 1161 | . 672 419 . 70 Parts 65 | . 31 27 . 7 Haulers Intercepted 1 | . 1 . . . Recyclers Shooed 1 | . 1 . . . Parts Field Recycled . | . . . . . Retrieved Matter . | . . . . . Parts Self-Destructed . | . . . . . Prevented . | . . . . . Kills | -11 -10 -10 -10 -9 ------- Run | Scr Mat Min Exi Min Combat Hostiles Destroyed 23 | . 10 10 . 3 Guns 20 | . 10 10 . . AOE 3 | . . . . 3 Classes Destroyed 6 | . 4 2 . . Worker 1 | . . 1 . . Tunneler 2 | . . 2 . . Hauler 1 | . 1 . . . Recycler 2 | . 2 . . . Swarmer 3 | . 1 2 . . Grunt 20 | . 9 8 . 3 Best Kill Streak 6 | . 4 6 . 3 Combat Bots Only 5 | . 3 5 . 3 Max Kills in Single Turn 1 | . 1 1 . 1 Gunslinging . | . . . . . Exploded 1 | . . . . 1 Melee . | . . . . . Uniques/NPCs Destroyed . | . . . . . Combat | -11 -10 -10 -10 -9 -------- Run | Scr Mat Min Exi Min Damage Taken 1416 | . 789 503 . 124 Core 256 | . 170 40 . 46 Absorbed by Shields . | . . . . . Core Remaining (%) 100 | 100 . . . . Volleys Fired 92 | . 55 33 . 4 Largest 2 | . 2 2 . 1 Hottest 100 | . 100 85 . 30 Shots Fired 164 | . 94 66 . 4 Gun 160 | . 94 66 . . Cannon . | . . . . . Launcher 4 | . . . . 4 Special . | . . . . . Kinetic 103 | . 46 57 . . Thermal 57 | . 48 9 . . Explosive 4 | . . . . 4 Electromagnetic . | . . . . . Robot Hit Streak 16 | . 12 12 . 16 Robot Miss Streak 3 | . 2 3 . . Penetration Max . | . . . . . Secondary Targets 3 | . 1 2 . . Max Gunslinging Chain 1 | . 1 1 . . Shots Hit Robots 119 | . 68 47 . 4 Core Hits 59 | . 29 24 . 6 Critical Hits . | . . . . . Critical Kills . | . . . . . Critical Parts Destroyed . | . . . . . Melee Attacks . | . . . . . Impact . | . . . . . Slashing . | . . . . . Piercing . | . . . . . Sneak Attacks . | . . . . . Combat Hostiles . | . . . . . Follow-up Attacks . | . . . . . Damage Inflicted 1531 | . 681 620 . 230 Guns 1297 | . 677 620 . . Cannons . | . . . . . Explosions 230 | . . . . 230 Melee . | . . . . . Ramming 4 | . 4 . . . Kinetic 795 | . 288 507 . . Thermal 502 | . 389 113 . . Explosive 230 | . . . . 230 Electromagnetic . | . . . . . Impact . | . . . . . Slashing . | . . . . . Piercing . | . . . . . Highest Corruption . | . . . . . Average Corruption . | . . . . . Corruption Purged . | . . . . . Overload Shots . | . . . . . Overflow Damage . | . . . . . Projectiles . | . . . . . Explosions . | . . . . . Melee . | . . . . . Knockbacks . | . . . . . Impact . | . . . . . Kinetic . | . . . . . Secondary . | . . . . . Self-Inflicted Damage 35 | . 2 . . 33 Shots 3 | . . . . 3 Rammed 1 | . 1 . . . Targets Rammed 1 | . 1 . . . Kicked . | . . . . . Crushed . | . . . . . Highest Temperature 249 | . 249 235 . 10 Average Temperature 75 | . 67 95 . 6 Received Heat Transfer 705 | . 402 264 . 39 Siege Activations . | . . . . . Robots Corrupted . | . . . . . Combat Hostiles . | . . . . . Parts Fried . | . . . . . Impact Corruptions . | . . . . . Robots Melted . | . . . . . Combat Hostiles . | . . . . . Parts Melted 3 | . 2 1 . . Heat Transferred 1371 | . 1112 259 . . Parts Sabotaged . | . . . . . Parts Stolen . | . . . . . Parts Stripped . | . . . . . Power Chain Reactions . | . . . . . Missiles Intercepted . | . . . . . Alert | -11 -10 -10 -10 -9 ------- Run | Scr Mat Min Exi Min Peak Influence 177 | . 177 140 . 70 Average Influence 55 | . 62 51 . 66 Maximum Alert Level . | . . . . . Low Security (%) 100 | 100 100 100 . 100 Level 1 . | . . . . . Level 2 . | . . . . . Level 3 . | . . . . . Level 4 . | . . . . . Level 5 . | . . . . . High Security . | . . . . . Max Security . | . . . . . Squads Dispatched 2 | . 2 . . . Investigation . | . . . . . Extermination . | . . . . . Reinforcement 2 | . 2 . . . Assault . | . . . . . Garrison . | . . . . . Intercept . | . . . . . Construction Impeded . | . . . . . Haulers Reinforced . | . . . . . Stealth | -11 -10 -10 -10 -9 --------- Run | Scr Mat Min Exi Min Distress Signals 2 | . 1 1 . . Communications Jammed . | . . . . . Distress Signals . | . . . . . Times Spotted 38 | . 23 12 . 3 Peak Tracking Total 5 | . 5 2 . 3 Tactical Retreats 2 | . 2 . . . Traps | -11 -10 -10 -10 -9 ------- Run | Scr Mat Min Exi Min Traps Triggered 2 | . 1 . . 1 Indirectly . | . . . . . Trap Hack Attempts . | . . . . . Triggered . | . . . . . Disarmed . | . . . . . Reprogrammed . | . . . . . Reused . | . . . . . Traps Extracted . | . . . . . Installed . | . . . . . Triggered . | . . . . . Machines | -11 -10 -10 -10 -9 ---------- Run | Scr Mat Min Exi Min Machines Disabled . | . . . . . Max in Single Turn . | . . . . . Machines Sabotaged . | . . . . . Garrisons Compromised . | . . . . . Overloaded Fab Kills . | . . . . . Fab Network Shutdowns . | . . . . . Hacking | -11 -10 -10 -10 -9 --------- Run | Scr Mat Min Exi Min Machines Accessed 5 | . 3 . 1 1 Terminals 3 | . 3 . . . Fabricators . | . . . . . Repair Stations . | . . . . . Recycling Units . | . . . . . Scanalyzers . | . . . . . Garrison Access . | . . . . . Total Hacks 29 | . 5 . 23 1 Successful 25 | . 1 . 23 1 Failed 4 | . 4 . . . Catastrophic 1 | . 1 . . . Database Lockouts . | . . . . . Manual 5 | . 5 . . . Terminals 5 | . 5 . . . Fabricators . | . . . . . Repair Stations . | . . . . . Recycling Units . | . . . . . Scanalyzers . | . . . . . Garrison Access . | . . . . . Terminal Hacks 24 | . . . 23 1 Record 23 | . . . 23 . Open Door 1 | . . . . 1 Fabricator Hacks . | . . . . . Repair Station Hacks . | . . . . . Recycling Unit Hacks . | . . . . . Scanalyzer . | . . . . . Garrison Access Hacks . | . . . . . Unauthorized Hacks 1 | . 1 . . . Terminals 1 | . 1 . . . Botnet 1 | . 1 . . . Fabricators . | . . . . . Repair Stations . | . . . . . Recycling Units . | . . . . . Scanalyzers . | . . . . . Garrison Access . | . . . . . Data Cores Recovered . | . . . . . Used . | . . . . . Hacking Detections 3 | . 3 . . . Full Trace Events . | . . . . . Feedback Events . | . . . . . Feedback Blocked . | . . . . . Robot Schematics Acquired . | . . . . . Robots Built . | . . . . . Matter . | . . . . . Time . | . . . . . Total Robot Build Rating . | . . . . . Part Schematics Acquired . | . . . . . Parts Built . | . . . . . Matter . | . . . . . Time . | . . . . . Total Part Build Rating . | . . . . . Parts Repaired . | . . . . . Time . | . . . . . Parts Recycled . | . . . . . Recycled Matter . | . . . . . Retrieved Matter . | . . . . . Retrieved Components . | . . . . . Parts Scanalyzed . | . . . . . Part Schematics Acquired . | . . . . . Parts Damaged . | . . . . . Bothacking | -11 -10 -10 -10 -9 ------------ Run | Scr Mat Min Exi Min Used RIF Installer . | . . . . . Robots Hacked . | . . . . . Non-combat . | . . . . . Combat . | . . . . . Robot Hacks Applied . | . . . . . Relay Couplers Released . | . . . . . Robots Rewired . | . . . . . Allies Hacked . | . . . . . Hacks Repelled . | . . . . . Allies | -11 -10 -10 -10 -9 -------- Run | Scr Mat Min Exi Min Total Allies 1 | . . 1 . . Largest Group 1 | . . 1 . . Highest-Rated Group 31 | . . 31 . . Highest-Rated Ally 31 | . . 31 . . Total Orders . | . . . . . Ally Attacks 3 | . . 3 . . Total Damage 62 | . . 62 . . Kills 1 | . . 1 . . Allies Corrupted . | . . . . . Allies Melted . | . . . . . Intel | -11 -10 -10 -10 -9 ------- Run | Scr Mat Min Exi Min Robot Analysis Total . | . . . . . Derelict Logs Recovered 1 | . . 1 . . Drone Launches . | . . . . . Drone Recoveries . | . . . . . Exploration | -11 -10 -10 -10 -9 ------------- Run | Scr Mat Min Exi Min Turns Passed 2859 | 3 817 1454 476 109 Spaces Moved 1330 | 3 412 602 260 53 Core . | . . . . . Treads 623 | . 67 556 . . Legs 707 | 3 345 46 260 53 Wheels . | . . . . . Hover . | . . . . . Flight . | . . . . . Fastest Speed 120 | 120 120 180 180 180 Average Speed 169 | 120 147 180 180 180 Slowest Speed 270 | 120 180 270 180 180 Overloaded Moves . | . . . . . Propulsion Burnouts . | . . . . . Robots Hopped . | . . . . . Cave-ins Triggered . | . . . . . Exploration Rate (%) 51 | 2 75 98 65 16 Regions Visited 4 Branch Regions 3 Pre-discovered Areas 1 | . . . 1 . Known Exits Taken . | . . . . . Unknown Exits Taken 4 | 1 1 1 1 . Scrap Searched 1 | . . 1 . . Spaces Dug . | . . . . . Terrain Destroyed 21 | . . . . 21 Melee . | . . . . . Projectile . | . . . . . AOE 21 | . . . . 21 Actions | -11 -10 -10 -10 -9 --------- Run | Scr Mat Min Exi Min Total 1790 | 2 542 913 270 63 Wait 277 | . 35 237 1 4 Move 1326 | 2 411 601 259 53 Hop . | . . . . . Pick Up 30 | . 12 16 2 . Fast Attach 5 | . 3 2 . . Attach 6 | . 4 1 1 . Detach 1 | . 1 . . . Swap 20 | . 9 7 2 2 Drop 32 | . 11 16 5 . Fire 92 | . 55 33 . 4 Melee . | . . . . . Ram . | . . . . . Kick 1 | . 1 . . . Crush . | . . . . . Escape Stasis . | . . . . . Rewire . | . . . . . Trap . | . . . . . Miscellaneous . | . . . . . Route ------- -11/Scrapyard -10/Materials (discovered 4 exits: [*Mat x2] / [*Min x2]) -10/Mines (discovered 3 exits: [*Mat x2] / *Exi) -10/Exiles -9/Mines History --------- Turn | Location | Event 1 | -11/Scrapyard | Discovered new exit (range 3) 4 | -11/Scrapyard | Entered Materials 295 | -10/Materials | Discovered new exit (range 16) 406 | -10/Materials | Discovered new exit (range 15) 478 | -10/Materials | Discovered new exit (range 11) 553 | -10/Materials | Build established: Mutant 647 | -10/Materials | Core integrity fell below 50% 679 | -10/Materials | Lost 4 parts (2n2w) 790 | -10/Materials | Discovered new exit (range 12) 821 | -10/Materials | Entered Mines 844 | -10/Mines | Received a Mining Laser from a helpful Derelict 943 | -10/Mines | Assembled infested the area 962 | -10/Mines | Joined a pair of Derelicts in attacking an 0b10 outpost 1323 | -10/Mines | Received a Rocket Launcher from a helpful Derelict 1577 | -10/Mines | A weapon hastily lodged in a ceiling crevice suddenly fell to the ground 1634 | -10/Mines | Discovered new exit (range 13) 1752 | -10/Mines | Learned location of 1 exit from Materials 2070 | -10/Mines | Discovered new exit (range 9) 2176 | -10/Mines | Core integrity fell below 20% 2266 | -10/Mines | Deemed a non-threat by the Exiles lab entrance 2267 | -10/Mines | Discovered new exit (range 5) 2275 | -10/Mines | Entered Exiles 2319 | -10/Exiles | Met 8R-AWN 2349 | -10/Exiles | Met EX-HEX 2409 | -10/Exiles | Met EX-BIN 2550 | -10/Exiles | Met EX-DEC 2561 | -10/Exiles | Learned location of Zion (-7) 2731 | -10/Exiles | Discovered new exit (range 12) 2751 | -10/Exiles | Entered Mines 2850 | -9/Mines | Met a Derelict who couldn't figure out how to use a Trap Extractor 2860 | -9/Mines | Destroyed by Explosive Trap Last Messages --------------- 02753_ G-34 Mercenary destroyed. 02759_ G-47 Trooper destroyed. 02761_ The unstable cave ceiling collapses. 02770_ Acquired 5 matter. 02779_ The unstable cave ceiling collapses. 02785_ R-06 Scavenger collects Lgt. Nuclear Core. 02787_ R-06 Scavenger collects Aluminum Leg. 02788_ R-06 Scavenger collects Sml. Laser. 02792_ R-06 Scavenger collects Imp. Heat Sink. 02849_ Connecting with SHOP.Sys... 02849_ Current location identified: Mines >>Open Door Sealed Doors opened. 02850_ 8B-WED(g): "So I found this thing but I have no idea how to use it. And who the hell trapped this place to begin with?!" 02850_ 8B-WED(g): "I give up! Here you try, I'm outta here before something nasty happens..." 02850_ Tosses Imp. Trap Extractor to the ground. 02860_ Triggered Explosive Trap. 02860_ An explosion rips through the floor. Map ----- +----------------------------------------------------+ | | | | | | | | | | | | | | | | | | | | | | | | | | | | | | | | | | | | | | | | | ?????????????????????????????????????????????????? | | ?????????????????????????????????????????????????? | | ???????????????????????????#############?????????? | | ??????????????????????###??# ##????????? | | ??????????????????????#"]### #????????? | | ??????????????????????#"!@!# #????????? | | ??????????????????????#"/! #?????????? | | ??????????????????????#"!^ ########### | | ??????????????????????#"* !#X | | ??????????????????????#"/### #### ###### | | ??????????????????????###??### #??# #????? | | ????????????????????????????# ### ##??# ????? | | ????????????????????????????# ##?#####?## ???? | | ????????????????????????????# ##??????? ??? | | ????????????????????????????# ?????????? ??? | | ???????????????????????????? ????????????# # | | ???????????????????????????###????????????## | | ????????????????????????????????????????????## | | ?????????????????????????????????????????????# ## | | ????????????????????????????????????????????????## | | ????????????????????????????????????????????????# | | ????????????????????????????????????????????????# | | ????????????????????????????????????????????????# | | ????????????????????????????????????????????????# | | ????????????????????????????????????????????????# | | ????????????????????????????????????????????????# | | ????????????????????????????????????????????????# | | ????????????????????????????????????????????????# | | ????????????????????????????????????????????????# | | ????????????????????????????????????????????????# | +----------------------------------------------------+ Best States ------------- Heat Dissipation 35 Energy Generation 10 Energy Capacity 250 Matter Stores 300 Matter Capacity 300 Sight Range 16 Terrain Scan Density 10 Evasion (%) 40 Recoil Reduction 2 Item Schematics ----------------- None Robot Schematics ------------------ None Fabricated ------------ Nothing Alien Tech Used ----------------- None Achievements -------------- None Challenges ------------ None Game ------ Seed ImprinterAssaultSheargun Manual? 0 Play Time 00:15:00 Cumulative 172.5 hours Start 2020.06.29 @ 22:48:34 End 2020.06.29 @ 23:02:43 Sessions 1 Manual Loads 0 Difficulty Rogue Special Mode None Game No. 94 Rogue 92 Adventurer 1 Explorer 1 Win Type - Total 2 Types 2/0/0/0/0/0/0 Lore% 61 Gallery% 74 Achievement% 53 Wizard Run 0 Options --------- ASCII 0 Keyboard 1 Movement Numpad Keybinds 1 Fullscreen 2 Font 24/Terminus Map View 76x50 Tactical HUD 1 Map Filters NONE Filters NONE Steam 1 RUN: 1c09ae15-c584-427c-92c8-05ffe772fd80